[Event "2025 Chess.com Botwinnik Rapid toernooi"]
[Site "Zoetermeer, Netherlands"]
[Date "????.??.??"]
[Round "7.6"]
[White "Grooten, Herman"]
[Black "Habig, Bryan"]
[Result "0-1"]
[TimeControl "15+5"]
[WhiteTitle "IM"]
[WhiteFideId "7375115"]
[BlackFideId "8490900"]
[WhiteElo "2157"]
[BlackElo "2040"]

1. d4 {[%clk 00:15:09]} {[%emt 00:00:01]} d5 {[%clk 00:15:09]} {[%emt
00:00:01]} 2. c4 {[%clk 00:15:13]} e6 {[%clk 00:15:13]} {[%emt 00:00:01]} 3.
Nf3 {[%clk 00:15:17]} c5 {[%clk 00:15:16]} {[%emt 00:00:01]} 4. cxd5 {[%clk
00:15:21]} {[%emt 00:00:01]} exd5 {[%clk 00:15:20]} {[%emt 00:00:02]} 5. g3
{[%clk 00:15:25]} {[%emt 00:00:01]} Nf6 {[%clk 00:15:22]} {[%emt 00:00:03]} 6.
Bg2 {[%clk 00:15:29]} Nc6 {[%clk 00:15:26]} {[%emt 00:00:02]} 7. O-O {[%clk
00:15:32]} {[%emt 00:00:01]} Be7 {[%clk 00:15:30]} {[%emt 00:00:01]} 8. dxc5
{[%clk 00:15:30]} {[%emt 00:00:08]} Bxc5 {[%clk 00:15:33]} {[%emt 00:00:02]} 9.
a3 {[%clk 00:15:22]} {[%emt 00:00:13]} O-O {[%clk 00:15:25]} {[%emt 00:00:13]}
10. Bg5 {[%clk 00:14:59]} {[%emt 00:00:28]} Be7 {[%clk 00:14:48]} {[%emt
00:00:41]} 11. Nc3 {[%clk 00:14:39]} {[%emt 00:00:25]} Be6 {[%clk 00:14:11]}
{[%emt 00:00:43]} 12. Nb5 {[%clk 00:14:30]} {[%emt 00:00:14]} h6 {[%clk
00:14:09]} {[%emt 00:00:07]} 13. Bf4 {[%clk 00:14:28]} {[%emt 00:00:07]} Rc8
{[%clk 00:14:04]} {[%emt 00:00:10]} 14. Nfd4 {[%clk 00:14:07]} {[%emt
00:00:25]} Bg4 {[%clk 00:13:55]} {[%emt 00:00:14]} 15. h3 {[%clk 00:14:03]}
{[%emt 00:00:10]} Bh5 {[%clk 00:13:50]} {[%emt 00:00:10]} 16. Nxc6 {[%clk
00:13:50]} {[%emt 00:00:17]} Rxc6 {[%clk 00:13:42]} {[%emt 00:00:13]} 17. Nd4
{[%clk 00:12:41]} {[%emt 00:01:15]} Rc8 {[%clk 00:13:36]} {[%emt 00:00:10]} 18.
Nf5 {[%clk 00:12:34]} {[%emt 00:00:12]} Bc5 {[%clk 00:13:31]} {[%emt 00:00:11]}
19. Nd4 {[%clk 00:10:33]} {[%emt 00:02:06]} Re8 {[%clk 00:12:55]} {[%emt
00:00:40]} 20. g4 {[%clk 00:09:47]} {[%emt 00:00:51]} Bg6 {[%clk 00:12:57]}
{[%emt 00:00:03]} 21. Be3 {[%clk 00:09:19]} {[%emt 00:00:33]} Be4 {[%clk
00:12:48]} {[%emt 00:00:14]} 22. Rc1 {[%clk 00:09:12]} {[%emt 00:00:12]} Qd7
{[%clk 00:12:33]} {[%emt 00:00:20]} 23. Bxe4 {[%clk 00:08:00]} {[%emt
00:01:18]} dxe4 {[%clk 00:10:28]} {[%emt 00:02:09]} 24. b4 {[%clk 00:07:41]}
{[%emt 00:00:24]} Bb6 {[%clk 00:10:11]} {[%emt 00:00:21]} 25. Nf5 {[%clk
00:07:37]} {[%emt 00:00:09]} Bxe3 {[%clk 00:09:33]} {[%emt 00:00:43]} 26. Nxe3
{[%clk 00:07:37]} {[%emt 00:00:05]} Rxc1 {[%clk 00:09:17]} {[%emt 00:00:21]} 27.
Qxc1 {[%clk 00:07:39]} {[%emt 00:00:02]} Rc8 {[%clk 00:08:43]} {[%emt
00:00:39]} 28. Qb2 {[%clk 00:07:43]} {[%emt 00:00:01]} Qc7 {[%clk 00:07:52]}
{[%emt 00:00:56]} 29. Rd1 {[%clk 00:06:50]} {[%emt 00:00:59]} Qc3 {[%clk
00:07:34]} {[%emt 00:00:23]} 30. Rd8+ {[%clk 00:06:42]} {[%emt 00:00:13]} Kh7
{[%clk 00:07:36]} {[%emt 00:00:02]} 31. Qxc3 {[%clk 00:06:41]} {[%emt
00:00:06]} Rxc3 {[%clk 00:07:39]} {[%emt 00:00:02]} 32. Rb8 {[%clk 00:05:37]}
{[%emt 00:01:09]} b6 {[%clk 00:07:15]} {[%emt 00:00:29]} 33. Rb7 {[%clk
00:04:51]} {[%emt 00:00:51]} Rxa3 {[%clk 00:07:14]} {[%emt 00:00:06]} 34. Rxf7
{[%clk 00:04:52]} {[%emt 00:00:04]} Kg6 {[%clk 00:06:55]} {[%emt 00:00:25]} 35.
Re7 {[%clk 00:03:38]} {[%emt 00:01:19]} h5 {[%clk 00:06:51]} {[%emt 00:00:10]}
36. g5 {[%clk 00:02:33]} {[%emt 00:01:10]} Ng8 {[%clk 00:04:33]} {[%emt
00:02:23]} 37. Re5 {[%clk 00:02:24]} {[%emt 00:00:15]} a5 {[%clk 00:03:54]}
{[%emt 00:00:43]} 38. Nd5 {[%clk 00:02:10]} {[%emt 00:00:18]} axb4 {[%clk
00:03:41]} {[%emt 00:00:19]} 39. Nf4+ {[%clk 00:02:11]} {[%emt 00:00:03]} Kf7
{[%clk 00:03:41]} {[%emt 00:00:05]} 40. Rxe4 {[%clk 00:02:11]} {[%emt
00:00:06]} b5 {[%clk 00:03:00]} {[%emt 00:00:47]} 41. Rxb4 {[%clk 00:02:07]}
{[%emt 00:00:08]} Ra4 {[%clk 00:03:04]} 42. Nd3 {[%clk 00:01:50]} {[%emt
00:00:22]} Rxb4 {[%clk 00:02:58]} {[%emt 00:00:11]} 43. Nxb4 {[%clk 00:01:54]}
Kg6 {[%clk 00:02:53]} {[%emt 00:00:09]} 44. h4 {[%clk 00:01:55]} {[%emt
00:00:04]} Kf5 {[%clk 00:02:56]} {[%emt 00:00:02]} 45. f3 {[%clk 00:01:56]}
{[%emt 00:00:04]} Ne7 {[%clk 00:02:59]} {[%emt 00:00:01]} 46. Kf2 {[%clk
00:01:57]} {[%emt 00:00:04]} Ke5 {[%clk 00:02:48]} {[%emt 00:00:16]} 47. e4
{[%clk 00:01:19]} {[%emt 00:00:43]} Kd4 {[%clk 00:02:32]} {[%emt 00:00:21]} 48.
Kg3 {[%clk 00:01:21]} {[%emt 00:00:03]} Kc4 {[%clk 00:02:28]} {[%emt 00:00:09]}
49. Na6 {[%clk 00:01:24]} {[%emt 00:00:02]} b4 {[%clk 00:02:22]} {[%emt
00:00:11]} 50. Nxb4 {[%clk 00:01:27]} {[%emt 00:00:01]} Kxb4 {[%clk 00:02:26]}
{[%emt 00:00:01]} 51. Kf4 {[%clk 00:01:30]} {[%emt 00:00:02]} Ng6 {[%clk
00:02:25]} {[%emt 00:00:06]} 52. Kg3 {[%clk 00:01:19]} {[%emt 00:00:16]} Kc4
{[%clk 00:02:29]} {[%emt 00:00:01]} 53. f4 {[%clk 00:01:23]} Kd4 {[%clk
00:02:28]} {[%emt 00:00:06]} 54. f5 {[%clk 00:01:28]} Kxe4 {[%clk 00:02:03]}
{[%emt 00:00:29]} 55. fxg6 {[%clk 00:01:29]} {[%emt 00:00:04]} Ke3 {[%clk
00:02:07]} {[%emt 00:00:01]} 56. Kg2 {[%clk 00:01:25]} {[%emt 00:00:09]} Kf4
{[%clk 00:02:10]} {[%emt 00:00:03]} 57. Kf2 {[%clk 00:01:23]} {[%emt 00:00:07]}
Kg4 {[%clk 00:02:13]} {[%emt 00:00:01]} 58. Ke3 {[%clk 00:01:26]} {[%emt
00:00:03]} Kg3 {[%clk 00:02:06]} {[%emt 00:00:12]} 59. Ke4 {[%clk 00:01:28]}
{[%emt 00:00:03]} Kxh4 {[%clk 00:02:06]} {[%emt 00:00:04]} 60. Kf5 {[%clk
00:01:29]} {[%emt 00:00:04]} Kg3 {[%clk 00:02:09]} {[%emt 00:00:03]} 61. Ke6
{[%clk 00:01:34]} {[%emt 00:00:01]} h4 {[%clk 00:02:13]} 62. Kf7 {[%clk
00:01:38]} h3 {[%clk 00:02:17]} 63. Kxg7 {[%clk 00:01:42]} {[%emt 00:00:01]} h2
{[%emt 00:00:12]} 64. Kf8 {[%clk 00:01:36]} h1=Q {[%emt 00:00:02]} 65. g7
{[%clk 00:01:40]} Qf3+ {[%clk 00:02:20]} {[%emt 00:00:07]} 66. Ke7 {[%clk
00:01:42]} {[%emt 00:00:04]} Qe4+ {[%clk 00:02:23]} {[%emt 00:00:01]} 67. Kf6
{[%clk 00:01:35]} {[%emt 00:00:13]} Qe8 {[%clk 00:02:26]} {[%emt 00:00:02]} 68.
g6 {[%clk 00:01:38]} {[%emt 00:00:02]} Qg8 {[%clk 00:02:30]} {[%emt 00:00:01]}
0-1